lending/lending_fUSD_20251106
["ID","MTS","AMOUNT","RATE_DAILY","PERIOD"]
[393299878,1762435840274,-500.0,0.00017954,2]
[393299879,1762435840283,-500.0,0.00017954,2]
[393299880,1762435840293,-202.3599179,0.00017954,2]
[393299881,1762435840302,-150.0,0.00017954,2]
[393299882,1762435840311,-150.0,0.00017954,2]
[393299883,1762435840321,-500.0,0.00017954,2]
[393299884,1762435840330,-300.0,0.00017954,2]
[393299885,1762435840339,-150.0,0.00017954,2]
[393299886,1762435840348,-150.0,0.00017954,2]
[393299887,1762435840357,-500.0,0.00017954,2]
[393299888,1762435840366,-150.0,0.00017954,2]
[393299889,1762435840375,-435.0,0.00017954,2]
[393299890,1762435840384,-329.0,0.00017973,2]
[393299891,1762435840393,-500.0,0.00017973,2]
[393299892,1762435840403,-500.0,0.00017973,2]
[393299893,1762435840412,-500.0,0.00017973,2]
[393299894,1762435840421,-500.0,0.00017973,2]
[393299895,1762435840430,-406.97735465,0.00017973,2]
[393299896,1762435840440,-500.0,0.00017973,2]
[393299897,1762435840449,-500.0,0.00017973,2]
[393299898,1762435840458,-500.0,0.00017973,2]
[393299899,1762435840467,-500.0,0.00017973,2]
[393299900,1762435840478,-500.0,0.00017973,2]
[393299901,1762435840487,-500.0,0.00017973,2]
[393299902,1762435840497,-500.0,0.00017973,2]
[393299903,1762435840505,-369.54119436,0.00017973,2]
[393299904,1762435840514,-500.0,0.00017973,2]
[393299905,1762435840523,-219.65200309,0.00017973,2]
[393299906,1762435840532,-150.12458609,0.00017973,2]
[393299907,1762435840542,-299.86343044,0.00017973,2]
[393299908,1762435840551,-500.0,0.0001799,2]
[393299909,1762435840561,-163.35,0.0001799,2]
[393299910,1762435840570,-163.35,0.0001799,2]
[393299911,1762435840579,-360.49368471,0.0001799,2]
[393299912,1762435840589,-360.49368471,0.0001799,2]
[393299913,1762435840598,-360.49368471,0.0001799,2]
[393299914,1762435840607,-378.0,0.00017991,2]
[393299915,1762435840616,-2365.46,0.00017998,2]
[393299916,1762435840625,-500.0,0.00017998,2]
[393299917,1762435840635,-150.0,0.00017999,2]
[393299918,1762435840644,-1304.90558406,0.00017999,5]
[393299919,1762435840653,-1304.90558406,0.00017999,5]
[393299920,1762435840662,-1304.90558406,0.00017999,5]
[393299921,1762435840671,-2365.46,0.00017999,2]
[393299922,1762435840680,-2365.46,0.00017999,2]
[393299923,1762435840690,-2365.46,0.00017999,2]
[393299924,1762435840699,-2365.46,0.00017999,2]
[393299925,1762435840708,-2365.46,0.00017999,2]
[393299926,1762435840717,-2365.46,0.00017999,2]
[393299927,1762435840728,-2365.46,0.00017999,2]
[393299928,1762435840737,-2365.46,0.00017999,2]
[393299929,1762435840746,-2365.46,0.00017999,2]
[393299930,1762435840755,-2365.46,0.00017999,2]
[393299931,1762435840764,-2365.46,0.00017999,2]
[393299932,1762435840773,-2365.46,0.00017999,2]
[393299933,1762435840783,-2365.46,0.00017999,2]
[393299934,1762435840795,-2365.46,0.00017999,2]
[393299935,1762435840804,-2365.46,0.00017999,2]
[393299936,1762435840813,-2365.46,0.00017999,2]
[393299937,1762435840823,-2365.46,0.00017999,2]
[393299938,1762435840833,-2365.46,0.00017999,2]
[393299939,1762435840842,-2365.46,0.00017999,2]
[393299940,1762435840851,-2365.46,0.00017999,2]
[393299941,1762435840860,-2365.6375167,0.00017999,2]
[393299942,1762435840872,-155.0,0.00017999,2]
[393299943,1762435840881,-1000.684,0.00017999,2]
[393299944,1762435840890,-500.0,0.00017999,2]
[393299945,1762435840900,-500.0,0.00017999,2]
[393299946,1762435840909,-500.0,0.00017999,2]
[393299947,1762435840919,-500.0,0.00017999,2]
[393299948,1762435840928,-500.0,0.00017999,2]
[393299949,1762435840937,-500.0,0.00017999,2]
[393299950,1762435840946,-500.0,0.00017999,2]
[393299951,1762435840955,-500.0,0.00017999,2]
[393299952,1762435840964,-500.0,0.00017999,2]
[393299953,1762435840975,-500.0,0.00017999,2]
[393299954,1762435840984,-500.0,0.00017999,2]
[393299955,1762435840993,-500.0,0.00017999,2]
[393299956,1762435841003,-500.0,0.00017999,2]
[393299957,1762435841012,-500.0,0.00017999,2]
[393299958,1762435841022,-500.0,0.00017999,2]
[393299959,1762435841031,-500.0,0.00017999,2]
[393299960,1762435841040,-500.0,0.00017999,2]
[393299961,1762435841049,-500.0,0.00017999,2]
[393299962,1762435841059,-216.16319318,0.00017999,2]
[393299963,1762435841068,-584.87,0.00017999,2]
[393299964,1762435841077,-584.87,0.00017999,2]
[393299965,1762435841086,-584.87,0.00017999,2]
[393299966,1762435841096,-584.87,0.00017999,2]
[393299967,1762435841105,-584.87,0.00017999,2]
[393299968,1762435841114,-584.87,0.00017999,2]
[393299969,1762435841123,-584.87,0.00017999,2]
[393299970,1762435841132,-584.87,0.00017999,2]
[393299971,1762435841141,-584.87,0.00017999,2]
[393299972,1762435841151,-584.87,0.00017999,2]
[393299973,1762435841159,-584.87,0.00017999,2]
[393299974,1762435841169,-584.87,0.00017999,2]
[393299975,1762435841178,-584.87,0.00017999,2]
[393299976,1762435841187,-584.87,0.00017999,2]
[393299977,1762435841196,-584.87,0.00017999,2]
[393299978,1762435841206,-584.87,0.00017999,2]
[393299979,1762435841215,-584.87,0.00017999,2]
[393299980,1762435841226,-584.87,0.00017999,2]
[393299981,1762435841235,-584.87,0.00017999,2]
[393299982,1762435841245,-584.87,0.00017999,2]
[393299983,1762435841254,-584.87,0.00017999,2]
[393299984,1762435841264,-584.97879056,0.00017999,2]
[393299985,1762435841273,-500.0,0.00017999,2]
[393299986,1762435841283,-500.0,0.00017999,2]
[393299987,1762435841292,-408.1311233,0.00017999,2]
[393299988,1762435841301,-180.69,0.00017999,2]
[393299989,1762435841310,-666.0,0.00017999,2]
[393299990,1762435841319,-296.87113101,0.00017999,2]
[393299991,1762435841328,-300.0,0.00017999,2]
[393299992,1762435841337,-666.0,0.00017999,2]
[393299993,1762435841346,-500.0,0.00017999,2]
[393299994,1762435841355,-500.0,0.00017999,2]
[393299995,1762435841364,-228.44372178,0.00017999,2]
[393299996,1762435841373,-2774.0,0.00018,2]
[393299997,1762435841383,-1894513.94126639,0.00018,2]
[393299998,1762435841400,-2331.8964075,0.00018,2]
[393300015,1762435843705,-5000.0,0.0001773,2]
[393300016,1762435843716,-150.0,0.00017954,2]
[393300017,1762435843725,-500.0,0.00017954,2]
[393300018,1762435843735,-554050.93027964,0.00018,2]
[393300027,1762435845818,-1240.15120975,0.00018,2]
[393300034,1762436461060,176.21,0.00013363,2]
[393300081,1762436966922,-150.5,0.0002607,120]
[393300082,1762436966992,-150.5,0.0002608,120]
[393300083,1762436967072,-150.5,0.0002609,120]
[393300084,1762436967152,-225.53,0.0002609,120]
[393300085,1762436967232,-786.43,0.00026256,120]
[393300086,1762436967327,-420.4121369,0.00030136,120]
[393300087,1762436976885,-6790.33293249,0.00038656,120]
[393300088,1762436976957,-342.88491472,0.00038656,120]
[393300089,1762436977029,-50000.0,0.00038656,30]
[393300090,1762436977103,-50000.0,0.00038656,31]
[393300091,1762436977173,-1294.93,0.00038656,120]
[393300092,1762436977607,-1294.93,0.00038656,120]
[393300093,1762436977677,-1294.93,0.00038656,120]
[393300094,1762436977746,-1294.93,0.00038656,120]
[393300095,1762436977813,-1294.93,0.00038656,120]
[393300096,1762436977884,-1294.93,0.00038656,120]
[393300097,1762436977961,-1294.93,0.00038656,120]
[393300098,1762436978033,-1294.93,0.00038656,120]
[393300099,1762436978107,-1294.93,0.00038656,120]
[393300100,1762436978182,-1294.93,0.00038656,120]
[393300101,1762436978254,-1294.93,0.00038656,120]
[393300102,1762436978327,-1294.93,0.00038656,120]
[393300103,1762436978407,-1294.93,0.00038656,120]
[393300104,1762436978482,-1294.93,0.00038656,120]
[393300105,1762436978561,-1294.93,0.00038656,120]
[393300106,1762436978631,-1294.93,0.00038656,120]
[393300107,1762436978700,-1294.93,0.00038656,120]
[393300108,1762436978770,-1294.93,0.00038656,120]
[393300109,1762436978841,-1294.93,0.00038656,120]
[393300110,1762436978914,-1294.93,0.00038656,120]
[393300111,1762436978989,-1294.93,0.00038656,120]
[393300112,1762436979061,-1294.93,0.00038656,120]
[393300113,1762436979132,-1294.93,0.00038656,120]
[393300114,1762436979205,-1295.12142158,0.00038656,120]
[393300115,1762436979279,-560.71593727,0.00038656,120]
[393300116,1762436979351,-916.12721968,0.00038656,120]
[393300117,1762436979424,-182.2,0.00038656,30]
[393300118,1762436979495,-377511.30204795,0.00038656,120]
[393300119,1762436979566,-469.11005833,0.00038656,120]
[393300120,1762436979632,-277.2192522,0.00038656,30]
[393300121,1762436979701,-200.0,0.00038656,30]
[393300122,1762436979769,-20830.9,0.00038656,120]
[393300123,1762436979839,-20830.9,0.00038656,120]
[393300124,1762436979911,-20830.9,0.00038656,120]
[393300125,1762436979983,-20830.9,0.00038656,120]
[393300126,1762436980055,-20830.9,0.00038656,120]
[393300127,1762436980126,-20830.9,0.00038656,120]
[393300128,1762436980195,-20830.9,0.00038656,120]
[393300129,1762436980265,-20830.9,0.00038656,120]
[393300130,1762436980334,-20830.9,0.00038656,120]
[393300131,1762436980404,-20830.9,0.00038656,120]
[393300132,1762436980474,-20830.9,0.00038656,120]
[393300133,1762436980543,-20830.9,0.00038656,120]
[393300134,1762436980612,-20830.9,0.00038656,120]
[393300135,1762436980681,-20830.9,0.00038656,120]
[393300136,1762436980750,-20830.9,0.00038656,120]
[393300137,1762436980821,-20830.9,0.00038656,120]
[393300138,1762436980891,-20830.9,0.00038656,120]
[393300139,1762436980959,-20830.9,0.00038656,120]
[393300140,1762436981031,-20830.9,0.00038656,120]
[393300141,1762436981103,-20830.9,0.00038656,120]
[393300142,1762436981174,-20830.9,0.00038656,120]
[393300143,1762436981244,-20830.9,0.00038656,120]
[393300144,1762436981315,-20830.9,0.00038656,120]
[393300145,1762436981383,-20831.07774968,0.00038656,120]
[393300515,1762437031752,-151.0,0.00015518,2]
[393300516,1762437031761,-151.0,0.00015572,2]
[393300517,1762437031811,-151.0,0.00015587,2]
[393300518,1762437031821,-500.0,0.00016301,2]
[393300519,1762437031830,-500.0,0.00016329,2]
[393300520,1762437031840,-638.0,0.00016603,2]
[393300521,1762437031851,-500.0,0.00016603,2]
[393300522,1762437031861,-176.21,0.00016704,2]
[393300523,1762437031870,-160.0,0.00016726,2]
[393300524,1762437031880,-1303.7382272,0.00016729,2]
[393300525,1762437031926,-1447.2617728,0.00016729,2]
[393300526,1762437031936,-500.0,0.00016767,2]
[393300527,1762437031946,-352.27,0.00016876,2]
[393300528,1762437031958,-13163.44952501,0.00017,2]
[393300529,1762437031985,-1320.402222,0.00017,2]
[393300530,1762437032045,-518.25,0.00017,2]
[393301092,1762437037639,-3725.66329332,0.00017,2]
[393301094,1762437037652,-1055.95684857,0.00017,2]
[393301105,1762437037751,-923.98674694,0.00017,2]
[393301270,1762437039746,-1109.0,0.00017,2]
[393301278,1762437039916,-1150470.99460424,0.00017,2]
[393301279,1762437039926,-200.0,0.00017021,2]
[393301280,1762437039936,-1200.0,0.00017085,2]
[393301281,1762437039945,-250.0,0.00017086,2]
[393301282,1762437039955,-300.0,0.00017199,2]
[393301283,1762437039964,-312.0,0.00017392,2]
[393301284,1762437039973,-477.87911524,0.00017466,2]
[393301285,1762437039982,-275.14,0.00017478,2]
[393301286,1762437039992,-279.7504,0.0001749,2]
[393301287,1762437040001,-1000.0,0.0001749,2]
[393301288,1762437040011,-2500.0,0.0001749,2]
[393301289,1762437040020,-414.61328133,0.00017495,2]
[393301290,1762437040029,-264.17702673,0.00017495,2]
[393301291,1762437040039,-763.44530986,0.00017495,2]
[393301292,1762437040057,-660.0,0.000175,3]
[393301293,1762437040067,-1000.0,0.000175,3]
[393301294,1762437040077,-472.0,0.000175,2]
[393301295,1762437040086,-1000.0,0.000175,2]
[393301296,1762437040097,-786.43,0.00017504,2]
[393301297,1762437040108,-205.81,0.00017504,2]
[393301298,1762437040122,-414.6132813,0.0001754,2]
[393301299,1762437040131,-763.4453098,0.0001754,2]
[393301300,1762437040140,-2377.3,0.0001754,2]
[393301301,1762437040151,-500.0,0.00017573,2]
[393301302,1762437040162,-369.54119436,0.00017573,2]
[393301303,1762437040172,-500.0,0.00017573,2]
[393301304,1762437040182,-500.0,0.00017573,2]
[393301305,1762437040192,-500.0,0.00017573,2]
[393301307,1762437040202,-500.0,0.00017573,2]
[393301309,1762437040211,-500.0,0.00017573,2]
[393301310,1762437040221,-299.86343044,0.00017573,2]
[393301313,1762437040231,-150.12458609,0.00017573,2]
[393301315,1762437040240,-376.36,0.0001758,3]
[393301317,1762437040249,-360.49368471,0.0001758,2]
[393301319,1762437040259,-414.6132813,0.00017585,2]
[393301321,1762437040268,-763.4453098,0.00017585,2]
[393301323,1762437040277,-151.0,0.00017587,2]
[393301325,1762437040287,-154.77872973,0.00017587,2]
[393301326,1762437040297,-1535.934,0.00017589,2]
[393301328,1762437040307,-500.0,0.00017589,2]
[393301329,1762437040316,-500.0,0.00017589,2]
[393301330,1762437040326,-500.0,0.00017589,2]
[393301331,1762437040336,-228.44372178,0.00017589,2]
[393301332,1762437040346,-396.85641135,0.00017589,2]
[393301333,1762437040355,-151.0,0.00017589,2]
[393301334,1762437040370,-151.0,0.00017589,2]
[393301335,1762437040380,-151.0,0.00017589,2]
[393301336,1762437040390,-151.0,0.00017589,2]
[393301337,1762437040401,-151.0,0.00017589,2]
[393301338,1762437040411,-151.0,0.00017589,2]
[393301339,1762437040421,-151.0,0.00017589,2]
[393301340,1762437040430,-151.0,0.00017589,2]
[393301341,1762437040439,-151.0,0.00017589,2]
[393301342,1762437040449,-151.0,0.00017589,2]
[393301343,1762437040459,-151.0,0.00017589,2]
[393301344,1762437040468,-151.0,0.00017589,2]
[393301345,1762437040477,-151.0,0.00017589,2]
[393301346,1762437040487,-151.0,0.00017589,2]
[393301347,1762437040496,-151.0,0.00017589,2]
[393301348,1762437040505,-151.0,0.00017589,2]
[393301349,1762437040514,-151.0,0.00017589,2]
[393301350,1762437040523,-151.0,0.00017589,2]
[393301351,1762437040532,-151.0,0.00017589,2]
[393301352,1762437040542,-151.0,0.00017589,2]
[393301353,1762437040551,-812830.4744398,0.0001759,2]
[393301354,1762437040563,-2392.50971612,0.0001759,2]
[393301355,1762437040574,-312.47886119,0.0001759,2]
[393301356,1762437040586,-16561.5,0.0001759,2]
[393301357,1762437040597,-3273.01653635,0.0001759,2]
[393301358,1762437040628,-393576.72186811,0.0001759,2]
[393301359,1762437040637,-150.0,0.00017595,2]
[393301360,1762437040647,-500.0,0.00017599,2]
[393301361,1762437040656,-500.0,0.00017599,2]
[393301362,1762437040665,-1182.73,0.00017599,2]
[393301363,1762437040675,-1304.90558406,0.00017599,5]
[393301364,1762437040684,-500.0,0.00017599,2]
[393301365,1762437040916,-500.0,0.00017599,2]
[393301366,1762437040926,-2500.0,0.000176,2]
[393301367,1762437040936,-58441.84724244,0.000176,2]
[393301390,1762437042911,-215385.70673813,0.000176,2]
[393301391,1762437042975,-146172.44601943,0.000176,2]
[393301392,1762437042984,-1000.0,0.000176,2]
[393301393,1762437042997,-312.0,0.00017623,2]
[393301394,1762437043006,-414.6132813,0.0001763,2]
[393301395,1762437043016,-152.34439162,0.0001763,2]
[393301396,1762437043025,-763.4453098,0.0001763,2]
[393301397,1762437043035,-166.68,0.00017653,2]
[393301398,1762437043044,-414.6132813,0.00017675,2]
[393301399,1762437043053,-763.4453098,0.00017675,2]
[393301400,1762437043062,-500.0,0.00017699,2]
[393301401,1762437043071,-500.0,0.00017699,2]
[393301402,1762437043081,-500.0,0.00017699,2]
[393301403,1762437043090,-328.76989074,0.00017699,2]
[393301404,1762437043099,-500.0,0.00017699,2]
[393301405,1762437043108,-414.6132813,0.0001772,2]
[393301406,1762437043122,-152.34439162,0.00017765,2]
[393301407,1762437043131,-414.6132813,0.00017765,2]
[393301408,1762437043140,-414.6132813,0.0001781,2]
[393301411,1762437043149,-500.0,0.00017829,2]
[393301412,1762437043160,-168.0,0.00017832,2]
[393301415,1762437043169,-312.0,0.00017842,2]
[393301417,1762437043179,-414.6132813,0.00017855,2]
[393301419,1762437043191,-2000.0,0.00017856,2]
[393301421,1762437043200,-200.0,0.00017856,2]
[393301422,1762437043210,-581.98602798,0.000179,2]
[393301424,1762437043219,-152.34439162,0.000179,2]
[393301426,1762437043229,-414.6132813,0.000179,2]
[393301427,1762437043239,-3052.0,0.000179,2]
[393301428,1762437043248,-150.0,0.00017954,2]
[393301429,1762437043258,-150.0,0.00017954,2]
[393301430,1762437043268,-500.0,0.00017954,2]
[393301431,1762437043277,-150.0,0.00017954,2]
[393301432,1762437043288,-617.0,0.00017954,2]
[393301433,1762437043297,-150.0,0.00017954,2]
[393301434,1762437043307,-500.0,0.00017954,2]
[393301436,1762437043316,-150.0,0.00017954,2]
[393301437,1762437043325,-150.0,0.00017954,2]
[393301438,1762437043335,-500.0,0.00017954,2]
[393301439,1762437043344,-159.31299469,0.00017954,2]
[393301440,1762437043353,-150.0,0.00017954,2]
[393301441,1762437043362,-150.0,0.00017954,2]
[393301443,1762437043372,-150.0,0.00017954,2]
[393301444,1762437043381,-150.0,0.00017954,2]
[393301445,1762437043393,-150.0,0.00017954,2]
[393301446,1762437043402,-150.0,0.00017954,2]
[393301447,1762437043412,-150.0,0.00017954,2]
[393301448,1762437043421,-500.0,0.00017954,2]
[393301449,1762437043430,-150.0,0.00017954,2]
[393301450,1762437043440,-500.0,0.00017954,2]
[393301451,1762437043449,-500.0,0.00017954,2]
[393301452,1762437043458,-500.0,0.00017954,2]
[393301453,1762437043467,-500.0,0.00017954,2]
[393301454,1762437043476,-150.0,0.00017954,2]
[393301455,1762437043486,-150.0,0.00017954,2]
[393301456,1762437043495,-150.0,0.00017954,2]
[393301457,1762437043503,-150.68663309,0.00017954,2]
[393301458,1762437043513,-500.0,0.00017954,2]
[393301459,1762437043523,-300.0,0.00017954,2]
[393301460,1762437043532,-329.0,0.00017973,2]
[393301461,1762437043541,-500.0,0.00017973,2]
[393301462,1762437043550,-500.0,0.00017973,2]
[393301463,1762437043559,-161.44513731,0.00017973,2]
[393301464,1762437043568,-150.13919962,0.00017973,2]
[393301465,1762437043577,-160.41796336,0.00017973,2]
[393301466,1762437043587,-500.0,0.00017973,2]
[393301467,1762437043596,-537.03503574,0.00017973,2]
[393301468,1762437043605,-500.0,0.00017973,2]
[393301469,1762437043614,-500.0,0.00017973,2]
[393301470,1762437043623,-500.0,0.00017973,2]
[393301471,1762437043632,-503.20309937,0.00017973,2]
[393301472,1762437043641,-500.0,0.00017973,2]
[393301473,1762437043650,-536.65406612,0.00017973,2]
[393301474,1762437043659,-500.0,0.00017973,2]
[393301475,1762437043668,-500.0,0.00017973,2]
[393301476,1762437043677,-500.0,0.00017973,2]
[393301477,1762437043686,-500.0,0.00017973,2]
[393301478,1762437043695,-419.7902568,0.00017973,2]
[393301479,1762437043704,-500.0,0.00017973,2]
[393301480,1762437043713,-506.28852507,0.00017973,2]
[393301481,1762437043722,-180.69,0.00017989,2]
[393301482,1762437043732,-152.00625849,0.00017989,2]
[393301483,1762437043741,-150.0,0.00017989,2]
[393301484,1762437043750,-150.0,0.00017989,2]
[393301485,1762437043760,-211.60455807,0.00017989,2]
[393301486,1762437043770,-150.0,0.00017989,2]
[393301487,1762437043782,-360.49368471,0.0001799,2]
[393301488,1762437043793,-360.49368471,0.0001799,2]
[393301489,1762437043802,-500.0,0.00017998,2]
[393301490,1762437043812,-500.0,0.00017998,2]
[393301491,1762437043821,-408.1311233,0.00017998,2]
[393301492,1762437043829,-1182.73,0.00017998,2]
[393301493,1762437043839,-500.0,0.00017998,2]
[393301494,1762437043848,-500.0,0.00017998,2]
[393301495,1762437043857,-158553.256249,0.00017999,2]
[393301496,1762437043866,-500.0,0.00017999,2]
[393301497,1762437043875,-500.0,0.00017999,2]
[393301498,1762437043884,-365.6375167,0.00017999,2]
[393301499,1762437043893,-7521.5811261,0.00017999,2]
[393301500,1762437043903,-434.57920695,0.00017999,2]
[393301501,1762437043912,-500.0,0.00017999,2]
[393301502,1762437043921,-500.0,0.00017999,2]
[393301503,1762437043931,-500.0,0.00017999,2]
[393301504,1762437043940,-500.0,0.00017999,2]
[393301505,1762437043949,-500.0,0.00017999,2]
[393301506,1762437043958,-500.0,0.00017999,2]
[393301507,1762437043967,-500.0,0.00017999,2]
[393301508,1762437043977,-500.0,0.00017999,2]
[393301509,1762437043986,-500.0,0.00017999,2]
[393301510,1762437043995,-500.0,0.00017999,2]
[393301511,1762437044004,-500.0,0.00017999,2]
[393301512,1762437044014,-500.0,0.00017999,2]
[393301513,1762437044025,-500.0,0.00017999,2]
[393301514,1762437044035,-500.0,0.00017999,2]
[393301515,1762437044046,-500.0,0.00017999,2]
[393301516,1762437044055,-500.0,0.00017999,2]
[393301517,1762437044064,-500.0,0.00017999,2]
[393301518,1762437044074,-500.0,0.00017999,2]
[393301519,1762437044083,-500.0,0.00017999,2]
[393301520,1762437044092,-500.0,0.00017999,2]
[393301521,1762437044102,-500.0,0.00017999,2]
[393301522,1762437044111,-327.3,0.00017999,2]
[393301523,1762437044123,-1304.90558406,0.00017999,5]
[393301524,1762437044132,-500.0,0.00017999,2]
[393301525,1762437044141,-500.0,0.00017999,2]
[393301526,1762437044150,-500.0,0.00017999,2]
[393301527,1762437044160,-500.0,0.00017999,2]
[393301528,1762437044172,-500.0,0.00017999,2]
[393301529,1762437044181,-500.0,0.00017999,2]
[393301530,1762437044191,-500.0,0.00017999,2]
[393301531,1762437044201,-500.0,0.00017999,2]
[393301532,1762437044210,-500.0,0.00017999,2]
[393301533,1762437044219,-500.0,0.00017999,2]
[393301534,1762437044229,-500.0,0.00017999,2]
[393301535,1762437044238,-500.0,0.00017999,2]
[393301536,1762437044247,-500.0,0.00017999,2]
[393301537,1762437044256,-500.0,0.00017999,2]
[393301538,1762437044266,-500.0,0.00017999,2]
[393301539,1762437044275,-500.0,0.00017999,2]
[393301540,1762437044285,-500.0,0.00017999,2]
[393301541,1762437044294,-500.0,0.00017999,2]
[393301542,1762437044303,-500.0,0.00017999,2]
[393301543,1762437044312,-500.0,0.00017999,2]
[393301544,1762437044321,-500.0,0.00017999,2]
[393301545,1762437044331,-500.0,0.00017999,2]
[393301546,1762437044340,-197.50879056,0.00017999,2]
[393301547,1762437044349,-1304.90558406,0.00017999,5]
[393301548,1762437044358,-150.0,0.00017999,2]
[393301549,1762437044367,-1182.73,0.00017999,2]
[393301550,1762437044378,-1182.73,0.00017999,2]
[393301551,1762437044387,-1182.73,0.00017999,2]
[393301552,1762437044398,-1182.73,0.00017999,2]
[393301553,1762437044408,-1182.73,0.00017999,2]
[393301554,1762437044417,-1182.73,0.00017999,2]
[393301555,1762437044426,-1182.73,0.00017999,2]
[393301556,1762437044436,-1182.73,0.00017999,2]
[393301557,1762437044446,-1182.73,0.00017999,2]
[393301558,1762437044456,-1182.73,0.00017999,2]
[393301559,1762437044466,-1182.73,0.00017999,2]
[393301560,1762437044475,-1182.73,0.00017999,2]
[393301561,1762437044485,-1182.73,0.00017999,2]
[393301562,1762437044494,-1182.73,0.00017999,2]
[393301563,1762437044503,-1182.73,0.00017999,2]
[393301564,1762437044513,-1182.73,0.00017999,2]
[393301565,1762437044522,-1182.73,0.00017999,2]
[393301566,1762437044532,-1182.73,0.00017999,2]
[393301567,1762437044543,-1182.73,0.00017999,2]
[393301568,1762437044552,-1182.73,0.00017999,2]
[393301569,1762437044565,-1182.73,0.00017999,2]
[393301570,1762437044577,-1182.73,0.00017999,2]
[393301571,1762437044586,-300.0,0.00017999,2]
[393301572,1762437044595,-666.0,0.00017999,2]
[393301573,1762437044604,-1921.695711,0.00017999,2]
[393301574,1762437044614,-35064.12420564,0.00017999,2]
[393301578,1762437045936,-1038.168593,0.00017999,2]
[393301579,1762437046162,-763.4453098,0.0001772,2]
[393301580,1762437046172,-5888.7146902,0.00017999,2]
[393301581,1762437046185,-3530.0,0.00017999,2]
[393301592,1762437061820,200.0,0.00038656,30]
[393301593,1762437062559,1119.25,8.935e-05,2]
[393301594,1762437062869,1119.25,9.387e-05,2]
[393301595,1762437063078,1119.25,9.839e-05,2]
[393301596,1762437063298,1119.25,0.00010291,2]
[393301597,1762437063502,1119.25,0.00010742,2]
[393301598,1762437063701,1119.25,0.00011194,2]
[393301599,1762437063920,1119.25,0.00011646,2]
[393301600,1762437064139,1119.25,0.00012098,2]
[393301601,1762437064373,869.8,0.0001255,2]
[393301602,1762437064398,249.45,0.0001255,2]
[393301603,1762437064605,1119.25,0.00013002,2]
[393301604,1762437064842,1119.25,0.00013453,2]
[393301605,1762437065205,1119.25,0.00013905,2]
[393301606,1762437065644,1119.25,0.00014357,2]
[393301607,1762437065853,1119.25,0.00014809,2]
[393301676,1762437119422,1132.23600305,0.00038656,120]
[393301680,1762437124112,4161.27,0.00038656,120]
[393301681,1762437124518,4161.27,0.00038656,120]
[393301682,1762437124909,4161.27,0.00038656,120]
[393301683,1762437125505,4161.27,0.00038656,120]
[393301684,1762437125892,4161.27,0.00038656,120]
[393301685,1762437126276,4161.27,0.00038656,120]
[393301686,1762437126662,4161.27,0.00038656,120]
[393301687,1762437127072,4161.27,0.00038656,120]
[393301688,1762437127507,4161.27,0.00038656,120]
[393301689,1762437127874,4161.27,0.00038656,120]
[393301690,1762437128225,4161.27,0.00038656,120]
[393301691,1762437128623,4161.27,0.00038656,120]
[393301692,1762437129021,4161.27,0.00038656,120]
[393301693,1762437129589,4161.27,0.00038656,120]